bitfinex/quotes_SOLUSD_20220227
["timestamp","ask_amount","ask_price","bid_price","bid_amount"]
[1645982381469,26.19179539,88.354,88.294,23.6459]
[1645982381668,1.54696405,88.353,88.294,23.6459]
[1645982381867,21.73875944,88.353,88.294,23.6459]
[1645982382171,1.44601274,88.352,88.294,23.6459]
[1645982382571,6.0,88.354,88.294,23.6459]
[1645982383069,20.19246572,88.353,88.294,23.6459]
[1645982383268,5.45872648,88.358,88.294,23.6459]
[1645982383469,22.9648,88.359,88.294,23.6459]
[1645982385069,6.0,88.358,88.294,23.6459]
[1645982389672,7.83958786,88.358,88.294,23.6459]
[1645982394079,6.0,88.358,88.294,23.6459]
[1645982397384,27.47366342,88.386,88.294,23.6459]
[1645982397385,1.55489404,88.384,88.295,2.74678921]
[1645982397585,27.2479,88.385,88.31,16.22]
[1645982397789,22.621,88.395,88.311,64.19719669]
[1645982397984,4.527,88.412,88.311,64.19719669]
[1645982397985,4.527,88.412,88.312,2.31376739]
[1645982398186,1.5586444,88.411,88.312,22.23445213]
[1645982398385,26.55351212,88.421,88.313,57.20770951]
[1645982398585,20.30687577,88.41,88.314,2.81685568]
[1645982398785,1.83416288,88.409,88.315,10.526]
[1645982398986,1.40059558,88.418,88.315,26.70896052]
[1645982399186,1.40059558,88.418,88.316,2.2652082]
[1645982399385,20.30687577,88.417,88.33,16.22]
[1645982399584,20.30687577,88.417,88.332,28.4180364]
[1645982399585,1.5099566,88.416,88.332,28.4180364]
[1645982399784,1.5099566,88.416,88.333,10.526]
[1645982399986,1.5099566,88.416,88.333,13.27278921]
[1645982400192,20.30687577,88.415,88.333,13.27278921]
[1645982400392,20.30687577,88.415,88.334,2.74678921]
[1645982400590,20.30687577,88.415,88.335,10.526]
[1645982400990,20.30687577,88.415,88.336,2.74678921]
[1645982401189,20.30687577,88.415,88.35,16.22]
[1645982401391,20.30687577,88.42,88.351,33.09332592]
[1645982401589,1.70634137,88.419,88.351,33.09332592]
[1645982401793,6.0,88.418,88.351,33.09332592]
[1645982402189,20.30687577,88.417,88.351,33.09332592]
[1645982402389,1.54305973,88.416,88.351,33.09332592]
[1645982402991,20.30687577,88.415,88.351,33.09332592]
[1645982403191,1.3546957,88.414,88.352,2.74678921]
[1645982403793,20.30687577,88.413,88.352,2.74678921]
[1645982403991,1.4706925,88.412,88.352,2.74678921]
[1645982404591,20.30687577,88.411,88.352,2.74678921]
[1645982404793,1.36355793,88.41,88.352,2.74678921]
[1645982405292,1.57547834,88.42,88.352,2.74678921]
[1645982405495,1.57547834,88.42,88.353,24.2168]
[1645982405913,20.29456218,88.419,88.353,24.2168]
[1645982406093,1.35187274,88.418,88.353,26.96358921]
[1645982406693,20.29456218,88.417,88.353,26.96358921]
[1645982406895,1.44238618,88.416,88.353,26.96358921]
[1645982407094,24.7613,88.421,88.353,26.96358921]
[1645982407297,1.53146895,88.438,88.354,4.525]
[1645982407497,1.53146895,88.438,88.355,6.0]
[1645982407694,1.53146895,88.438,88.37,16.22]
[1645982407896,20.2741566,88.437,88.371,34.92087921]
[1645982408297,20.2741566,88.439,88.372,7.287614]
[1645982408498,20.2741566,88.439,88.372,13.287614]
[1645982408701,20.2741566,88.445,88.373,2.74678921]
[1645982408901,20.2741566,88.445,88.374,6.0]
[1645982409299,20.2741566,88.445,88.375,2.74678921]
[1645982409498,1.69620968,88.478,88.39,16.22]
[1645982409699,24.99490968,88.478,88.391,36.24931016]
[1645982411813,4.523,88.477,88.391,36.24931016]
[1645982412011,24.99490968,88.478,88.391,36.24931016]
[1645982412917,23.2987,88.478,88.391,36.24931016]
[1645982413214,23.2987,88.478,88.392,5.2571219]
[1645982413422,23.2987,88.478,88.393,6.0]
[1645982413620,23.2987,88.478,88.393,8.74678921]
[1645982414023,23.2987,88.478,88.394,2.74678921]
[1645982414221,1.8327034,88.477,88.395,6.0]
[1645982414422,1.8327034,88.477,88.391,36.24931016]
[1645982414621,6.0,88.476,88.394,2.74678921]
[1645982414825,1.42189886,88.475,88.394,2.74678921]
[1645982415023,4.523,88.474,88.394,2.74678921]
[1645982415225,24.7655574,88.474,88.394,2.74678921]
[1645982415424,15.46816602,88.473,88.392,22.9504]
[1645982415623,6.34354992,88.472,88.392,22.9504]
[1645982415826,23.19966149,88.472,88.37,16.22]
[1645982416023,70.40239799,88.471,88.373,6.0]
[1645982416224,6.21964585,88.47,88.373,6.0]
[1645982416426,91.89989799,88.47,88.373,6.0]
[1645982416626,33.11174765,88.469,88.373,6.0]
[1645982416826,6.27817193,88.468,88.373,6.0]
[1645982417026,56.43801252,88.468,88.373,6.0]
[1645982417227,1.50288328,88.466,88.373,6.0]
[1645982417427,4.523,88.465,88.373,6.0]
[1645982417627,56.2487365,88.465,88.373,6.0]
[1645982417827,13.9168164,88.464,88.373,6.0]
[1645982418027,26.46939381,88.463,88.373,6.0]
[1645982418230,16.9789,88.45,88.372,4.524]
[1645982418429,6.14275127,88.449,88.372,4.524]
[1645982418627,6.14275127,88.449,88.34,16.22]
[1645982418829,23.2171,88.448,88.34,16.22]
[1645982419029,1.45352687,88.447,88.341,28.8225217]
[1645982419229,246.88968557,88.432,88.341,28.8225217]
[1645982419430,5.91851079,88.431,88.341,28.8225217]
[1645982419630,16.984,88.43,88.341,28.8225217]
[1645982419831,6.08804148,88.429,88.341,28.8225217]
[1645982420230,22.98934661,88.428,88.341,28.8225217]
[1645982420431,6.0359852,88.427,88.341,28.8225217]
[1645982420631,1.77418708,88.426,88.341,28.8225217]
[1645982420831,4.525,88.425,88.341,28.8225217]
[1645982421834,4.525,88.425,88.317,25.21324249]
[1645982421835,16.9843,88.42,88.308,23.7834]
[1645982422034,6.04545184,88.419,88.31,16.49477441]
[1645982422334,47.13814699,88.419,88.32,16.22]
[1645982422536,42.61214699,88.418,88.31,0.27477441]
[1645982422733,6.10645742,88.417,88.311,30.28938022]
[1645982422934,16.9873,88.4,88.311,30.28938022]
[1645982423133,6.35476127,88.399,88.325,32.57109069]
[1645982423335,56.6454,88.39,88.31,0.27477441]
[1645982423537,6.25183202,88.389,88.31,0.27477441]
[1645982423735,24.17159006,88.389,88.31,0.27477441]
[1645982423938,1.59448374,88.388,88.31,0.27477441]
[1645982424234,4.527,88.387,88.31,0.27477441]
[1645982424435,195.37648064,88.372,88.316,31.97638283]
[1645982424634,6.1712769,88.371,88.316,31.97638283]
[1645982425937,16.9938,88.37,88.31,0.27477441]
[1645982426239,1.37316871,88.369,88.31,0.27477441]
[1645982426435,4.527,88.368,88.31,0.27477441]
[1645982428038,4.527,88.368,88.327,0.0075453]
[1645982428239,4.527,88.368,88.31,0.27477441]
[1645982428240,16.9955,88.36,88.31,0.27477441]
[1645982428439,90.0,88.367,88.31,0.27477441]
[1645982428440,5.90574356,88.359,88.31,0.27477441]
[1645982428641,4.527,88.359,88.31,0.27477441]
[1645982428844,4.527,88.365,88.31,0.27477441]
[1645982429343,7.43944981,88.364,88.31,0.27477441]
[1645982429642,1.85404112,88.349,88.31,0.27477441]
[1645982431044,4.527,88.348,88.31,0.27477441]
[1645982431243,4.527,88.348,88.28,16.22]
[1645982432345,2.74678921,88.347,88.28,16.22]
[1645982432546,4.529,88.346,88.28,16.22]
[1645982432749,6.0,88.345,88.28,16.22]
[1645982432948,4.529,88.344,88.28,16.22]
[1645982433246,6.18537042,88.344,88.281,32.65472995]
[1645982433447,1.52400099,88.343,88.281,32.65472995]
[1645982434451,4.529,88.342,88.281,32.65472995]
[1645982434652,1.52400099,88.343,88.281,32.65472995]
[1645982436351,2.74678921,88.342,88.281,32.65472995]
[1645982436552,4.529,88.341,88.281,32.65472995]
[1645982436755,1.52400099,88.343,88.281,32.65472995]
[1645982439057,6.0,88.342,88.281,32.65472995]
[1645982442263,6.0,88.342,88.276,0.5]
[1645982442463,6.07936761,88.341,88.276,0.5]
[1645982443366,16.9995,88.34,88.276,0.5]
[1645982443567,6.17053551,88.339,88.276,0.5]
[1645982446368,6.0,88.338,88.276,0.5]
[1645982446569,4.529,88.337,88.276,0.5]
[1645982446769,5.89681984,88.337,88.276,0.5]
[1645982448293,2.74678921,88.336,88.276,0.5]
[1645982448593,4.529,88.335,88.276,0.5]
[1645982448793,17.0014,88.33,88.276,0.5]
[1645982448994,4.529,88.329,88.276,0.5]
[1645982449194,6.03774162,88.329,88.276,0.5]
[1645982449395,4.529,88.329,88.276,0.5]
[1645982449598,1.43352679,88.343,88.276,0.5]
[1645982450001,6.0,88.342,88.276,0.5]
[1645982450200,16.9992,88.34,88.276,0.5]
[1645982450398,1.47331664,88.339,88.276,0.5]
[1645982453603,6.00231664,88.339,88.276,0.5]
[1645982454004,1.47331664,88.339,88.276,0.5]
[1645982454205,6.0,88.338,88.276,0.5]
[1645982454404,4.529,88.337,88.276,0.5]
[1645982454607,5.96524645,88.337,88.276,0.5]
[1645982455006,1.43624645,88.337,88.276,0.5]
[1645982456710,2.74678921,88.336,88.276,0.5]
[1645982457312,1.43624645,88.337,88.276,0.5]
[1645982457912,6.0,88.336,88.276,0.5]
[1645982458321,6.22724143,88.335,88.276,0.5]
[1645982458512,17.0012,88.33,88.276,0.5]
[1645982458712,1.60196414,88.328,88.276,0.5]
[1645982458912,4.529,88.327,88.276,0.5]
[1645982459714,1.60196414,88.328,88.276,0.5]
[1645982459912,4.529,88.327,88.276,0.5]
[1645982461114,4.529,88.328,88.276,0.5]
[1645982461616,24.2906,88.329,88.276,0.5]
[1645982462915,6.0,88.328,88.276,0.5]
[1645982463714,4.529,88.327,88.276,0.5]
[1645982465114,24.2906,88.329,88.276,0.5]
[1645982467617,1.53778623,88.328,88.276,0.5]
[1645982467817,1.48283879,88.319,88.276,0.5]
[1645982468018,4.53,88.318,88.276,0.5]
[1645982468617,29.2106,88.318,88.276,0.5]
[1645982468818,6.0,88.317,88.276,0.5]
[1645982469418,15.17296883,88.316,88.251,23.1335]
[1645982469619,1.65483902,88.315,88.251,23.1335]
[1645982470020,15.17296883,88.314,88.251,23.1335]
[1645982471816,17.0053,88.31,88.251,23.1335]
[1645982472419,10.53,88.309,88.264,0.00626345]
[1645982472621,1.5407833,88.308,88.264,0.00626345]
[1645982472821,4.53,88.307,88.264,0.00626345]
[1645982473022,17.007,88.3,88.264,0.00626345]
[1645982473221,6.01968007,88.299,88.264,0.00626345]
[1645982473441,29.0550434,88.299,88.264,0.00626345]
[1645982473620,16.80511422,88.298,88.264,0.00626345]
[1645982473819,4.53,88.297,88.264,0.00626345]
[1645982474121,1.85745231,88.296,88.264,0.00626345]
[1645982474420,90.0,88.294,88.211,24.70456461]
[1645982474620,17.0118,88.29,88.211,24.70456461]
[1645982474823,6.2499699,88.289,88.211,24.70456461]
[1645982475021,8.99675911,88.289,88.211,24.70456461]
[1645982475224,26.9515733,88.288,88.211,24.70456461]
[1645982475519,26.9515733,88.288,88.177,2.74678921]
[1645982475520,6.10434259,88.287,88.19,16.22]
[1645982475720,1.76544919,88.286,88.198,2.41512306]
[1645982475920,17.012,88.28,88.17,16.22]
[1645982476119,56.7305,88.27,88.16,16.22]
[1645982476318,1.80967276,88.268,88.16,16.22]
[1645982476520,4.533,88.267,88.16,16.22]
[1645982476720,90.0,88.266,88.161,32.7408838]
[1645982476921,4.534,88.265,88.162,24.9931]
[1645982477322,4.534,88.265,88.108,2.677295]
[1645982477323,33.2392,88.26,88.108,2.677295]
[1645982477523,56.7529,88.23,88.121,2.3474437]
[1645982477724,47.8706,88.229,88.105,2.92861348]
[1645982477923,6.17349918,88.228,88.12,16.22]
[1645982478122,6.17349918,88.228,88.105,2.92861348]
[1645982478321,19.84928808,88.227,88.134,36.1266785]
[1645982478527,17.0259,88.22,88.134,36.1266785]
[1645982478828,4.535,88.219,88.135,2.90128378]
[1645982479026,40.70455629,88.219,88.135,2.90128378]
[1645982479225,20.34811148,88.219,88.135,2.90128378]
[1645982479428,1.85033945,88.218,88.134,36.1266785]
[1645982479628,4.535,88.217,88.134,36.1266785]
[1645982479827,24.5618,88.216,88.134,36.1266785]
[1645982480027,4.535,88.215,88.134,36.1266785]
[1645982480230,1.71457803,88.209,88.134,36.1266785]
[1645982480627,1.71457803,88.209,88.163,1.07278746]
[1645982480830,6.24957803,88.209,88.163,1.07278746]
[1645982481247,20.15823986,88.209,88.163,1.07278746]
[1645982481446,1.53592866,88.208,88.163,1.07278746]
[1645982481648,1.8318803,88.207,88.163,1.07278746]
[1645982481847,15.74054213,88.207,88.163,1.07278746]
[1645982482049,32.9574975,88.206,88.163,1.07278746]
[1645982482250,17.0262,88.2,88.163,1.07278746]
[1645982482449,1.77715714,88.199,88.163,1.07278746]
[1645982483353,6.0,88.198,88.163,1.07278746]
[1645982483951,6.0,88.197,88.163,1.07278746]
[1645982484151,17.0262,88.2,88.163,1.07278746]
[1645982484351,6.0,88.199,88.163,1.07278746]
[1645982484553,7.74580949,88.199,88.163,1.07278746]
[1645982484753,12.28080949,88.199,88.163,1.07278746]
[1645982484953,1.76413829,88.198,88.163,1.07278746]
[1645982485155,29.89237464,88.198,88.163,1.07278746]
[1645982485356,1.65919382,88.197,88.163,1.07278746]
[1645982485553,1.77256864,88.197,88.163,1.07278746]
[1645982485755,1.77256864,88.197,88.137,37.29024829]
[1645982486356,1.77256864,88.197,88.137,1.0721772]
[1645982487155,6.0,88.196,88.137,1.0721772]
[1645982487858,29.3775,88.199,88.137,1.0721772]
[1645982487859,6.0,88.195,88.137,1.0721772]
[1645982488056,24.8425,88.199,88.137,1.0721772]
[1645982488258,6.0,88.198,88.137,1.0721772]
[1645982489561,4.535,88.197,88.137,1.0721772]
[1645982490360,6.0,88.198,88.133,2.55072469]
[1645982491457,17.0281,88.19,88.133,2.55072469]
[1645982491656,4.535,88.197,88.133,2.55072469]
[1645982491657,1.42829057,88.189,88.133,2.55072469]
[1645982491857,32.30356251,88.197,88.133,2.55072469]
[1645982492058,1.72098623,88.228,88.133,2.55072469]
[1645982492259,23.9527,88.229,88.135,2.61709695]
[1645982492656,1.43670548,88.228,88.14,16.22]
[1645982493063,1.43670548,88.228,88.14,18.96678921]
[1645982493261,4.535,88.227,88.14,18.96678921]
[1645982493461,4.535,88.227,88.141,2.84171992]
[1645982493660,23.9527,88.229,88.141,2.84171992]
[1645982493862,1.79160127,88.228,88.142,2.74678921]
[1645982494061,6.32660127,88.228,88.141,2.84171992]
[1645982494661,6.32660127,88.228,88.142,2.74678921]
[1645982494862,6.0,88.209,88.141,2.84171992]
[1645982496765,6.0,88.209,88.141,5.58850913]
[1645982496965,23.9527,88.229,88.141,5.58850913]
[1645982498867,4.535,88.228,88.141,5.58850913]
[1645982500068,1.35769398,88.227,88.141,5.58850913]
[1645982500271,19.20403456,88.222,88.141,5.58850913]
[1645982500470,4.535,88.221,88.143,1.07889163]
[1645982500871,6.0,88.209,88.143,1.07889163]
[1645982502071,17.0224,88.22,88.143,1.07889163]
[1645982502271,6.0,88.209,88.143,1.07889163]
[1645982502472,6.24379509,88.208,88.143,1.07889163]
[1645982502971,1.70879509,88.208,88.143,1.07889163]
[1645982503173,1.70879509,88.208,88.143,0.57889163]
[1645982503372,22.0694,88.207,88.143,0.57889163]
[1645982504374,6.0,88.206,88.143,0.57889163]
[1645982505876,6.0,88.205,88.143,0.57889163]
[1645982506176,6.0,88.209,88.14,16.22]
[1645982506375,6.0,88.209,88.141,30.94326829]
[1645982506575,6.0,88.209,88.142,2.92107444]
[1645982508577,6.0,88.209,88.141,28.18684997]
[1645982509578,6.0,88.209,88.142,5.67308502]
[1645982509777,6.0,88.209,88.142,10.20808502]
[1645982509978,6.0,88.209,88.143,2.74678921]
[1645982510179,195.97314431,88.21,88.144,4.535]
[1645982510378,195.97314431,88.21,88.145,6.0]
[1645982510581,195.97314431,88.21,88.146,4.535]
[1645982510783,195.97314431,88.21,88.147,6.0]
[1645982510983,195.97314431,88.21,88.161,36.14237228]
[1645982511180,195.97314431,88.21,88.162,7.10756298]
[1645982511382,6.0839417,88.267,88.162,7.10756298]
[1645982511580,17.0158,88.26,88.164,2.5584296]
[1645982511779,6.04640217,88.259,88.163,24.8156]
[1645982512183,30.41702337,88.259,88.163,24.8156]
[1645982512480,1.4580719,88.257,88.164,2.76713448]
[1645982512779,4.534,88.256,88.164,2.76713448]
[1645982512981,5.91143836,88.256,88.164,2.76713448]
[1645982513182,1.43975262,88.255,88.164,2.76713448]
[1645982513380,29.0968,88.254,88.164,2.76713448]
[1645982513584,49.66296938,88.254,88.164,2.76713448]
[1645982513985,4.534,88.253,88.164,5.51392369]
[1645982514181,24.3706212,88.274,88.165,6.0]
[1645982514382,6.0,88.265,88.165,6.0]
[1645982514583,6.0,88.265,88.181,36.62394758]
[1645982514785,6.0,88.265,88.182,8.53002326]
[1645982515283,6.0,88.265,88.182,2.66093988]
[1645982515483,2.74678921,88.265,88.181,33.70936149]
[1645982515685,9.04493226,88.265,88.181,33.70936149]
[1645982516088,9.04493226,88.265,88.182,2.6789019]
[1645982516089,49.47079058,88.264,88.182,2.6789019]
[1645982516286,49.47079058,88.264,88.181,33.70936149]
[1645982516486,49.47079058,88.264,88.182,2.6471542]
[1645982516685,24.3706212,88.264,88.182,2.6471542]
[1645982516886,6.05522811,88.263,88.182,2.6471542]
[1645982517489,30.42584931,88.263,88.182,2.6471542]
[1645982518887,30.42584931,88.263,88.181,33.70936149]
[1645982521594,30.42584931,88.263,88.182,2.45835924]
[1645982522412,6.05522811,88.263,88.182,2.45835924]
[1645982522611,0.05522811,88.263,88.182,2.45835924]
[1645982522811,155.85493264,88.266,88.182,2.45835924]
[1645982523213,155.85493264,88.266,88.183,8.74678921]
[1645982523718,155.85493264,88.266,88.184,2.74678921]
[1645982523914,155.85493264,88.266,88.185,6.0]
[1645982524115,2.74678921,88.282,88.2,16.22]
[1645982524313,2.74678921,88.282,88.201,32.50863259]
[1645982524515,30.63951592,88.281,88.201,32.50863259]
[1645982524714,1.71911128,88.28,88.201,32.50863259]
[1645982525116,1.46990774,88.278,88.201,32.50863259]
[1645982525518,30.63951592,88.277,88.201,32.50863259]
[1645982525720,1.75780724,88.276,88.201,32.50863259]
[1645982525918,1.75780724,88.276,88.201,49.78323259]
[1645982526118,30.87492968,88.277,88.201,49.78323259]
[1645982526320,6.0,88.276,88.201,49.78323259]
[1645982526519,1.47363488,88.28,88.201,49.78323259]
[1645982526718,6.0,88.279,88.201,49.78323259]
[1645982527718,1.46205829,88.294,88.202,2.74678921]
[1645982527919,1.46205829,88.294,88.202,25.67098921]
[1645982528118,27.60554368,88.289,88.202,25.67098921]
[1645982528319,6.28490476,88.288,88.202,22.9242]
[1645982528618,27.60554368,88.287,88.202,22.9242]
[1645982528823,27.60554368,88.287,88.203,2.74678921]
[1645982529019,1.5557231,88.286,88.203,2.74678921]
[1645982530021,6.0,88.285,88.203,2.74678921]
[1645982531723,27.60554368,88.303,88.204,4.532]
[1645982531925,7.36852886,88.295,88.205,6.0]
[1645982532124,19.6530691,88.309,88.206,4.532]
[1645982532325,1.81833059,88.308,88.221,28.9610259]
[1645982532526,1.81833059,88.308,88.222,4.532]
[1645982532926,1.81833059,88.308,88.222,7.27878921]
[1645982534130,1.81833059,88.308,88.223,2.74678921]
[1645982534327,6.0,88.307,88.224,22.7257]
[1645982534529,1.4047647,88.314,88.224,22.7257]
[1645982534727,6.0,88.313,88.225,6.0]
[1645982535329,6.0,88.313,88.226,7.27778921]
[1645982535526,6.0,88.313,88.23,16.22]
[1645982535927,6.0,88.313,88.231,6.0]
[1645982536328,33.60554368,88.313,88.231,8.74678921]
[1645982536528,33.60554368,88.313,88.23,16.22]
[1645982536529,8.74074609,88.312,88.23,16.22]
[1645982536729,28.82749405,88.312,88.224,22.7257]
[1645982536934,39.64591832,88.311,88.224,22.7257]
[1645982537128,6.12293038,88.31,88.224,22.7257]
[1645982537328,49.71736166,88.31,88.224,22.7257]
[1645982537527,12.09070429,88.309,88.224,22.7257]
[1645982537727,4.531,88.308,88.224,22.7257]
[1645982537930,6.0,88.307,88.224,22.7257]
[1645982538130,4.531,88.306,88.224,22.7257]
[1645982538329,6.01223399,88.306,88.224,22.7257]
[1645982538530,27.60554368,88.305,88.224,22.7257]
[1645982538831,1.66526385,88.304,88.224,39.9494]
[1645982539033,7.66526385,88.304,88.224,39.9494]
[1645982539730,6.0,88.304,88.224,39.9494]
[1645982539932,1.64801354,88.318,88.225,16.29377712]
[1645982540131,6.0,88.313,88.225,16.29377712]
[1645982540531,6.0,88.313,88.226,2.74678921]
[1645982540729,6.0,88.313,88.227,10.531]
[1645982540933,6.0,88.313,88.241,28.52825565]
[1645982542632,7.71920651,88.313,88.241,28.52825565]
[1645982542831,33.60554368,88.313,88.241,28.52825565]
[1645982543034,24.4555,88.312,88.241,28.52825565]
[1645982543235,1.40285006,88.311,88.241,28.52825565]
[1645982544138,27.60554368,88.31,88.241,28.52825565]
[1645982544335,1.45797872,88.309,88.241,28.52825565]
[1645982544736,27.60554368,88.31,88.241,28.52825565]
[1645982545035,0.15,88.839,88.241,28.52825565]
[1645982545036,56.6591,88.37,88.241,28.52825565]
[1645982545235,26.62803693,88.329,88.242,10.531]
[1645982545437,26.62803693,88.329,88.242,4.531]
[1645982546350,24.7593,88.329,88.242,4.531]
[1645982546544,1.4798301,88.314,88.241,28.52825565]
[1645982546745,1.4798301,88.314,88.24,16.22]
[1645982546746,25.5898301,88.314,88.24,16.22]
[1645982546944,10.37167641,88.313,88.225,4.531]
[1645982547147,6.37718972,88.312,88.224,39.9494]
[1645982547444,55.00689972,88.312,88.224,39.9494]
[1645982547644,76.39732865,88.311,88.224,22.7257]
[1645982547845,6.36951516,88.31,88.225,27.45058554]
[1645982548046,1.62913887,88.309,88.225,27.45058554]
[1645982548245,4.531,88.308,88.225,27.45058554]
[1645982548665,2.74678921,88.307,88.225,27.45058554]
[1645982548866,4.531,88.306,88.225,27.45058554]
[1645982549270,2.74678921,88.306,88.225,27.45058554]
[1645982550468,4.46402342,88.323,88.226,16.22342346]
[1645982550667,24.6119,88.329,88.24,16.22]
[1645982550868,24.6119,88.329,88.241,31.38266224]
[1645982551069,1.44046126,88.328,88.241,31.38266224]
[1645982551368,1.44046126,88.328,88.242,6.0]
[1645982551568,1.755491,88.314,88.241,31.38266224]
[1645982551771,1.755491,88.314,88.242,4.531]
[1645982552568,1.40697704,88.313,88.242,4.531]
[1645982553571,1.40697704,88.313,88.241,31.38266224]
[1645982554071,6.0,88.312,88.24,16.22]
[1645982554274,6.00691717,88.311,88.24,16.22]
[1645982554871,6.00691717,88.311,88.241,33.84312955]
[1645982555071,1.47591717,88.311,88.241,33.84312955]
[1645982556471,1.51716108,88.313,88.241,33.84312955]
[1645982557073,24.5803,88.314,88.241,33.84312955]
[1645982557275,24.5803,88.314,88.242,4.531]
[1645982557475,24.5803,88.314,88.243,6.0]
[1645982557675,1.45494684,88.329,88.244,4.531]
[1645982557877,1.44578581,88.328,88.245,6.0]
[1645982558077,1.52652726,88.327,88.26,16.22]
[1645982558275,1.63811116,88.326,88.261,30.92902845]
[1645982558476,1.41240672,88.346,88.261,30.92902845]
[1645982558678,4.53,88.345,88.261,30.92902845]
[1645982558977,23.839,88.347,88.262,13.27678921]
[1645982559378,23.839,88.347,88.263,2.74678921]
[1645982559577,23.839,88.347,88.264,6.0]
[1645982559578,1.45743639,88.346,88.264,6.0]
[1645982559975,23.839,88.347,88.264,6.0]
[1645982560378,23.839,88.347,88.263,2.74678921]
[1645982560577,1.6309555,88.346,88.263,2.74678921]
[1645982560976,6.0,88.345,88.263,2.74678921]
[1645982561178,6.0,88.345,88.262,23.6051]
[1645982561378,6.31399362,88.344,88.262,23.6051]
[1645982562177,2.74678921,88.343,88.251,24.26]
[1645982562380,4.53,88.342,88.251,24.26]
[1645982562778,2.74678921,88.341,88.251,24.26]
[1645982562977,4.53,88.34,88.252,31.25781441]
[1645982563180,152.0850016,88.334,88.252,31.25781441]
[1645982563381,112.6,88.332,88.24,16.22]
[1645982563579,4.53,88.331,88.22,16.22]
[1645982563779,25.00980472,88.331,88.22,16.22]
[1645982563985,61.0555095,88.33,88.22,16.22]
[1645982564181,6.36042961,88.329,88.22,16.22]
[1645982564483,17.0067,88.3,88.218,28.27782397]
[1645982564682,6.05923008,88.299,88.218,28.27782397]
[1645982565080,30.6276943,88.299,88.218,28.27782397]
[1645982565280,1.82366072,88.288,88.218,28.27782397]
[1645982565482,4.532,88.287,88.218,28.27782397]
[1645982566584,4.532,88.287,88.2,16.22]
[1645982566784,6.0,88.286,88.2,16.22]
[1645982566988,6.0,88.285,88.193,4.532]
[1645982567286,6.18897995,88.284,88.193,4.532]
[1645982567484,32.45720654,88.284,88.193,4.532]
[1645982567687,19.28034834,88.283,88.202,34.46719014]
[1645982567886,6.20658738,88.282,88.202,34.46719014]
[1645982568085,8.95337659,88.282,88.202,34.46719014]
[1645982568284,14.86413361,88.281,88.202,34.46719014]
[1645982568485,22.95447232,88.28,88.216,26.62721697]
[1645982568686,25.70126153,88.28,88.216,26.62721697]
[1645982568886,1.36687756,88.279,88.216,26.62721697]
[1645982569086,4.532,88.278,88.216,26.62721697]
[1645982569286,7.27878921,88.278,88.216,26.62721697]
[1645982569588,2.74678921,88.277,88.216,26.62721697]
[1645982569788,4.532,88.276,88.216,26.62721697]
[1645982569989,4.532,88.276,88.193,4.532]
[1645982570190,2.74678921,88.275,88.193,4.532]
[1645982570390,4.532,88.274,88.193,4.532]
[1645982570889,2.74678921,88.273,88.193,4.532]
[1645982571093,2.74678921,88.273,88.207,35.47562614]
[1645982571289,24.32113139,88.272,88.207,35.47562614]
[1645982571490,1.73364947,88.271,88.207,35.47562614]
[1645982571690,6.0,88.27,88.207,35.47562614]
[1645982572092,8.74678921,88.27,88.207,35.47562614]
[1645982572289,2.74678921,88.269,88.207,35.47562614]
[1645982572792,6.0,88.27,88.207,35.47562614]
[1645982575393,2.74678921,88.269,88.207,35.47562614]
[1645982575593,2.74678921,88.269,88.193,4.532]
[1645982575893,1.62800146,88.268,88.193,4.532]
[1645982576093,20.9083498,88.268,88.193,4.532]
[1645982576294,19.38813153,88.267,88.193,4.532]
[1645982576493,1.82541413,88.266,88.194,33.88502743]
[1645982576695,23.89442197,88.266,88.194,33.88502743]
[1645982576894,22.06900784,88.266,88.194,33.88502743]
[1645982577195,4.26388438,88.265,88.194,33.88502743]
[1645982577695,4.26388438,88.265,88.193,4.532]
[1645982577894,2.74678921,88.264,88.193,4.532]
[1645982578296,4.533,88.263,88.193,4.532]
[1645982578697,2.74678921,88.262,88.193,4.532]
[1645982578898,4.533,88.261,88.193,4.532]